fUSD/lending_fUSD_20250214
["ID","MTS","AMOUNT","RATE_DAILY","PERIOD"]
[353059614,1739536582289,-1000.0,0.00020301,120]
[353059615,1739536582320,-1000.0,0.00020301,120]
[353059616,1739536582345,-1000.0,0.00020301,120]
[353059617,1739536582370,-1000.0,0.00020301,120]
[353059618,1739536582397,-1000.0,0.00020301,120]
[353059619,1739536582421,-1000.0,0.00020301,120]
[353059620,1739536582445,-1007.40835751,0.00020301,120]
[353059621,1739536582470,-339.26903592,0.00020329,120]
[353059622,1739536582495,-150.0,0.00020362,120]
[353059623,1739536582520,-150.0,0.00020397,120]
[353059624,1739536582545,-2000.0,0.00020466,60]
[353059625,1739536582569,-3000.0,0.0002049,30]
[353059626,1739536582596,-2000.0,0.00020493,60]
[353059627,1739536582621,-34005.0,0.000205,30]
[353059628,1739536582647,-464.0,0.000205,120]
[353059629,1739536582671,-2000.0,0.00020521,60]
[353059630,1739536582696,-150.0,0.00020545,120]
[353059631,1739536582723,-2000.0,0.00020548,60]
[353059632,1739536582749,-2000.0,0.00020575,60]
[353059633,1739536582773,-2840.49,0.000206,30]
[353059634,1739536582797,-2000.0,0.00020603,60]
[353059635,1739536582821,-150.0,0.00020616,120]
[353059636,1739536582845,-2000.0,0.0002063,60]
[353059637,1739536582869,-2000.0,0.00020658,60]
[353059638,1739536582893,-2000.0,0.00020685,60]
[353059639,1739536582916,-400.8727006,0.0002069,120]
[353059640,1739536582941,-159.46,0.00020696,60]
[353059641,1739536582965,-637.6712396,0.000207,60]
[353059642,1739536582989,-2862.06,0.00020701,60]
[353059643,1739536583030,-3000.0,0.00020702,60]
[353059644,1739536583054,-3000.0,0.00020702,60]
[353059645,1739536583077,-3000.0,0.00020702,60]
[353059646,1739536583102,-3000.0,0.00020702,60]
[353059647,1739536583128,-3000.0,0.00020702,60]
[353059648,1739536583152,-2637.77,0.00020702,60]
[353059649,1739536583177,-2000.0,0.00020712,60]
[353059650,1739536583201,-357170.38850427,0.0002072,60]
[353059651,1739536583226,-426.93,0.00020743,60]
[353059652,1739536583251,-520.0,0.00020768,60]
[353059653,1739536583275,-2880.28148601,0.00020775,60]
[353059654,1739536583302,-390.0,0.00020775,120]
[353059655,1739536583330,-3000.0,0.00020856,60]
[353059656,1739536583355,-3000.0,0.000209,30]
[353059657,1739536583380,-1643.9848874,0.000209,30]
[353059658,1739536583407,-6447.09115321,0.00021,30]
[353059659,1739536583438,-150.0,0.00021027,120]
[353059660,1739536583465,-150.0,0.00021089,120]
[353059661,1739536583665,-150.0,0.0002111,120]
[353059662,1739536583695,-150.0,0.00021354,120]
[353059663,1739536583721,-150.0,0.00021418,120]
[353059664,1739536583748,-6623.14870622,0.000215,30]
[353059665,1739536583773,-150.0,0.00021598,120]
[353059666,1739536583799,-150.0,0.00021622,120]
[353059667,1739536583827,-150.0,0.00021671,120]
[353059668,1739536583855,-379.52,0.00021826,30]
[353059669,1739536583880,-560.86192534,0.00021917,120]
[353059670,1739536583908,-2422.35,0.00021917,30]
[353059671,1739536583934,-2422.35,0.00021917,30]
[353059672,1739536583959,-2422.35,0.00021917,30]
[353059673,1739536583983,-2422.35,0.00021917,30]
[353059674,1739536584009,-2422.35,0.00021917,30]
[353059675,1739536584036,-2422.35,0.00021917,30]
[353059676,1739536584061,-2422.35,0.00021917,30]
[353059677,1739536584088,-2422.35,0.00021917,30]
[353059678,1739536584115,-2422.35,0.00021917,30]
[353059679,1739536584139,-2422.35,0.00021917,30]
[353059680,1739536584164,-2422.35,0.00021917,30]
[353059681,1739536584189,-2422.35,0.00021917,30]
[353059682,1739536584214,-2422.35,0.00021917,30]
[353059683,1739536584239,-2422.35,0.00021917,30]
[353059684,1739536584264,-2422.35,0.00021917,30]
[353059685,1739536584289,-2422.35,0.00021917,30]
[353059686,1739536584319,-2422.35,0.00021917,30]
[353059687,1739536584345,-2422.35,0.00021917,30]
[353059688,1739536584371,-2422.35,0.00021917,30]
[353059689,1739536584398,-2422.35,0.00021917,30]
[353059690,1739536584424,-2422.35,0.00021917,30]
[353059691,1739536584449,-2422.35,0.00021917,30]
[353059692,1739536584474,-2422.35,0.00021917,30]
[353059693,1739536584500,-2422.57453619,0.00021917,30]
[353059694,1739536584526,-16390.01681116,0.00022,30]
[353059695,1739536584552,-1000.0,0.00022,120]
[353059696,1739536584577,-500.0,0.00022,90]
[353059697,1739536584602,-500.0,0.00022,90]
[353059698,1739536584627,-300.0,0.00022,120]
[353059699,1739536584651,-4715.91807633,0.00022,30]
[353059700,1739536584676,-20144.0,0.00022222,30]
[353059701,1739536584700,-284.376187,0.00022273,120]
[353059702,1739536584725,-2000.0,0.00022273,120]
[353059703,1739536584749,-569.481308,0.00022273,120]
[353059704,1739536584774,-268.740445,0.00022273,120]
[353059705,1739536584799,-2392.39146,0.00022888,30]
[353059706,1739536584823,-55000.000001,0.00023,30]
[353059707,1739536584848,-1017.51400075,0.00023,120]
[353059708,1739536584872,-1000.0,0.00023,120]
[353059709,1739536584897,-2192.23864015,0.00023,120]
[353059710,1739536584921,-217.40733617,0.00023,120]
[353059711,1739536584945,-500.0,0.00023,90]
[353059712,1739536584969,-500.0,0.00023,90]
[353059713,1739536584992,-14716.39495602,0.00023,30]
[353059714,1739536585016,-800.0,0.00023,30]
[353059715,1739536585039,-800.0,0.00023,30]
[353059716,1739536585063,-800.0,0.00023,30]
[353059717,1739536585087,-800.0,0.00023,30]
[353059718,1739536585110,-800.0,0.00023,30]
[353059719,1739536585134,-800.0,0.00023,30]
[353059720,1739536585158,-800.0,0.00023,30]
[353059721,1739536585182,-800.0,0.00023,30]
[353059722,1739536585205,-800.0,0.00023,30]
[353059723,1739536585229,-800.0,0.00023,30]
[353059724,1739536585253,-800.0,0.00023,30]
[353059725,1739536585276,-800.0,0.00023,30]
[353059726,1739536585307,-800.0,0.00023,30]
[353059727,1739536585331,-1333.8613692,0.00023,30]
[353059728,1739536585355,-500.0,0.00023,30]
[353059729,1739536585381,-500.0,0.00023,30]
[353059730,1739536585404,-500.0,0.00023,30]
[353059731,1739536585429,-500.0,0.00023,30]
[353059732,1739536585453,-500.0,0.00023,30]
[353059733,1739536585476,-502.97768726,0.00023,30]
[353059734,1739536585500,-500.0,0.00023,30]
[353059735,1739536585526,-500.0,0.00023,30]
[353059736,1739536585549,-500.0,0.00023,30]
[353059737,1739536585573,-500.0,0.00023,30]
[353059738,1739536585597,-801.98244452,0.00023,30]
[353059739,1739536585622,-500.0,0.00023,30]
[353059740,1739536585647,-500.0,0.00023,30]
[353059741,1739536585671,-500.0,0.00023,30]
[353059742,1739536585694,-817.98533086,0.00023,30]
[353059743,1739536585718,-504.4121803,0.00023,30]
[353059744,1739536585742,-503.95374333,0.00023,30]
[353059745,1739536585766,-500.0,0.00023,30]
[353059746,1739536585789,-500.0,0.00023,30]
[353059747,1739536585813,-511.04455552,0.00023,30]
[353059748,1739536585837,-519.03903714,0.00023,30]
[353059749,1739536585861,-2682.08711968,0.00023,30]
[353059750,1739536585885,-2392.39146,0.00023088,30]
[353059751,1739536585910,-2392.39146,0.00023288,30]
[353059752,1739536585935,-2392.39146,0.00023488,30]
[353059753,1739536585959,-2392.39146,0.00023688,30]
[353059754,1739536586129,-800.0,0.00023701,30]
[353059755,1739536586155,-651.47573356,0.00023701,30]
[353059756,1739536586180,-800.0,0.00023701,30]
[353059757,1739536586204,-800.0,0.00023701,30]
[353059758,1739536586230,-800.0,0.00023701,30]
[353059759,1739536586254,-800.0,0.00023701,30]
[353059760,1739536586280,-800.0,0.00023701,30]
[353059761,1739536586309,-800.0,0.00023701,30]
[353059762,1739536586334,-800.0,0.00023701,30]
[353059763,1739536586362,-800.0,0.00023701,30]
[353059764,1739536586391,-800.0,0.00023701,30]
[353059765,1739536586416,-800.0,0.00023701,30]
[353059766,1739536586442,-800.0,0.00023701,30]
[353059767,1739536586468,-800.0,0.00023701,30]
[353059768,1739536586494,-800.0,0.00023701,30]
[353059769,1739536586518,-800.0,0.00023701,30]
[353059770,1739536586545,-500.0,0.00023701,30]
[353059771,1739536586571,-500.0,0.00023701,30]
[353059772,1739536586598,-500.0,0.00023701,30]
[353059773,1739536586624,-500.0,0.00023701,30]
[353059774,1739536586650,-500.0,0.00023701,30]
[353059775,1739536586674,-500.0,0.00023701,30]
[353059776,1739536586698,-500.0,0.00023701,30]
[353059777,1739536586723,-500.0,0.00023701,30]
[353059778,1739536586750,-500.0,0.00023701,30]
[353059779,1739536586776,-500.0,0.00023701,30]
[353059780,1739536586802,-500.0,0.00023701,30]
[353059781,1739536586827,-500.0,0.00023701,30]
[353059782,1739536586853,-500.0,0.00023701,30]
[353059783,1739536586879,-500.0,0.00023701,30]
[353059784,1739536586905,-500.0,0.00023701,30]
[353059785,1739536586929,-500.0,0.00023701,30]
[353059786,1739536586954,-570.82095288,0.00023701,30]
[353059787,1739536586980,-500.0,0.00023701,30]
[353059788,1739536587004,-240.001955,0.00023701,30]
[353059789,1739536587031,-500.0,0.00023701,30]
[353059790,1739536587058,-500.0,0.00023701,30]
[353059791,1739536587084,-500.0,0.00023701,30]
[353059792,1739536587111,-500.0,0.00023701,30]
[353059793,1739536587136,-500.0,0.00023701,30]
[353059794,1739536587162,-500.0,0.00023701,30]
[353059795,1739536587188,-2000.0,0.00023773,120]
[353059796,1739536587218,-2392.39146,0.00023888,30]
[353059797,1739536587243,-61003.49016891,0.000239,30]
[353059798,1739536587269,-950.0,0.00024,40]
[353059799,1739536587296,-292223.50644237,0.00024,30]
[353059800,1739536587327,-302627.90512672,0.00024,45]
[353059801,1739536587352,-20000.0,0.00024,30]
[353059802,1739536587380,-1000.0,0.00024,120]
[353059803,1739536587406,-100000.0,0.00024,120]
[353059804,1739536587433,-2392.39146,0.00024088,30]
[353059805,1739536587462,-2392.39146,0.00024288,30]
[353059806,1739536587498,-379.52,0.0002441,30]
[353059807,1739536587529,-2392.39146,0.00024488,30]
[353059808,1739536587563,-150.5,0.0002467,120]
[353059809,1739536587597,-150.5,0.0002467,120]
[353059810,1739536587631,-150.5,0.0002468,120]
[353059811,1739536587664,-150.5,0.0002468,120]
[353059812,1739536587697,-2392.39146,0.00024688,30]
[353059813,1739536587732,-150.5,0.0002469,120]
[353059814,1739536587765,-150.5,0.0002469,120]
[353059815,1739536587798,-174.65,0.0002469,120]
[353059816,1739536587830,-2392.39146,0.00024888,30]
[353059817,1739536587862,-153.91510682,0.0002489,30]
[353059818,1739536587894,-244.57160977,0.000249,30]
[353059819,1739536587926,-30000.0,0.000249,120]
[353059820,1739536587957,-177.0,0.0002497,30]
[353059821,1739536587988,-177.0,0.0002497,30]
[353059822,1739536588016,-428.0,0.0002497,120]
[353059823,1739536588045,-428.0,0.0002497,120]
[353059824,1739536588079,-177.0,0.0002498,30]
[353059825,1739536588106,-177.0,0.0002498,30]
[353059826,1739536588135,-177.0,0.0002498,30]
[353059827,1739536588168,-177.43,0.0002498,30]
[353059828,1739536588197,-428.0,0.0002498,120]
[353059829,1739536588226,-428.0,0.0002498,120]
[353059830,1739536588255,-428.0,0.0002498,120]
[353059831,1739536588284,-428.7,0.0002498,120]
[353059832,1739536588316,-177.0,0.0002499,30]
[353059833,1739536588346,-177.0,0.0002499,30]
[353059834,1739536588379,-177.0,0.0002499,30]
[353059835,1739536588411,-177.0,0.0002499,30]
[353059836,1739536588439,-428.0,0.0002499,120]
[353059837,1739536588470,-428.0,0.0002499,120]
[353059838,1739536588500,-428.0,0.0002499,120]
[353059839,1739536588530,-428.0,0.0002499,120]
[353059840,1739536588561,-10293.81829048,0.00025,30]
[353059841,1739536588591,-3705.63708043,0.00025,120]
[353059842,1739536588622,-1000.0,0.00025,120]
[353059843,1739536588651,-2000.0,0.00025,90]
[353059844,1739536588686,-239653.38913039,0.00025,120]
[353059845,1739536588718,-200.0,0.00025,120]
[353059846,1739536588747,-56262.0,0.00025,120]
[353059847,1739536588778,-2392.39146,0.00025088,30]
[353059848,1739536588806,-1203.723726,0.00025273,120]
[353059849,1739536588835,-2392.39146,0.00025288,30]
[353059850,1739536588865,-8521.49,0.000253,30]
[353059851,1739536588895,-500.0,0.00025392,120]
[353059852,1739536588925,-2392.39146,0.00025488,30]
[353059853,1739536588955,-2392.39146,0.00025688,30]
[353059854,1739536588985,-100000.01,0.00026,30]
[353059855,1739536589196,-1000.0,0.00026,120]
[353059856,1739536589222,-950.0,0.00026,60]
[353059857,1739536589247,-100000.0,0.00026,120]
[353059858,1739536589271,-293.67196866,0.00026,120]
[353059859,1739536589297,-2392.39146,0.00026088,30]
[353059860,1739536589326,-2392.39146,0.00026288,30]
[353059861,1739536589352,-227.85469857,0.00026325,90]
[353059862,1739536589378,-2392.39146,0.00026488,30]
[353059863,1739536589405,-500.0,0.00026547,120]
[353059864,1739536589431,-2392.39146,0.00026688,30]
[353059865,1739536589456,-266.18342598,0.00026841,120]
[353059866,1739536589484,-2392.39146,0.00026888,30]
[353059867,1739536589509,-510.60891363,0.00026987,30]
[353059868,1739536589535,-379.52,0.00026994,30]
[353059869,1739536589561,-555.55555,0.00027,120]
[353059870,1739536589588,-555.55555,0.00027,120]
[353059871,1739536589615,-555.55555,0.00027,120]
[353059872,1739536589640,-555.55555,0.00027,120]
[353059873,1739536589666,-555.55555,0.00027,120]
[353059874,1739536589691,-555.55555,0.00027,120]
[353059875,1739536589716,-555.55555,0.00027,120]
[353059876,1739536589741,-555.55555,0.00027,120]
[353059877,1739536589766,-555.5556,0.00027,120]
[353059878,1739536589792,-1000.0,0.00027,120]
[353059879,1739536589821,-100000.0,0.00027,120]
[353059880,1739536589847,-2392.39146,0.00027088,30]
[353059881,1739536589874,-119197.95148727,0.000272,44]
[353059882,1739536589900,-119197.95148727,0.000272,44]
[353059883,1739536589926,-119197.95148727,0.000272,44]
[353059884,1739536589952,-119197.95148727,0.000272,44]
[353059885,1739536589978,-119197.95148727,0.000272,44]
[353059886,1739536590006,-2392.39146,0.00027288,30]
[353059887,1739536590032,-596.46,0.00027397,120]
[353059888,1739536590269,-369.46,0.00027397,120]
[353059889,1739536590296,-10000.0,0.000274,30]
[353059890,1739536590325,-2392.39146,0.00027488,30]
[353059891,1739536590354,-2392.39146,0.00027688,30]
[353059892,1739536590379,-500.0,0.00027701,120]
[353059893,1739536590405,-2392.39146,0.00027888,30]
[353059894,1739536590430,-1000.0,0.00027999,60]
[353059895,1739536590456,-1000.0,0.00028,30]
[353059896,1739536590481,-100000.01,0.00028,30]
[353059897,1739536590510,-1000.0,0.00028,120]
[353059898,1739536590534,-950.0,0.00028,80]
[353059899,1739536590560,-100000.0,0.00028,120]
[353059900,1739536590584,-2392.39146,0.00028088,30]
[353059901,1739536590608,-2392.39146,0.00028288,30]
[353059902,1739536590636,-2392.39146,0.00028488,30]
[353059903,1739536590663,-2392.39146,0.00028688,30]
[353059904,1739536590688,-500.0,0.00028856,120]
[353059905,1739536590713,-2392.39146,0.00028888,30]
[353059906,1739536590738,-900.0,0.00029,30]
[353059907,1739536590766,-500.0,0.00029,120]
[353059908,1739536590791,-1115.79405494,0.00029,120]
[353059909,1739536590818,-379.52,0.00029578,30]
[353059910,1739536590843,-427.0,0.00029886,30]
[353059911,1739536590869,-164.076,0.0002989,120]
[353059912,1739536590894,-2266.70013483,0.000299,120]
[353059913,1739536590918,-1000.0,0.0003,30]
[353059914,1739536590943,-900.0,0.0003,31]
[353059915,1739536590970,-1004.0,0.0003,30]
[353059916,1739536590996,-151.0,0.0003,120]
[353059917,1739536591022,-193.24444444,0.0003,120]
[353059918,1739536591047,-1047.19046798,0.0003,120]
[353059919,1739536591074,-1000.0,0.0003,120]
[353059920,1739536591098,-950.0,0.0003,120]
[353059921,1739536591124,-1856.4245433,0.0003,120]
[353059922,1739536591149,-1985.8166945,0.0003,120]
[353059923,1739536591181,-654.18044691,0.0003,120]
[353059924,1739536591206,-200.0,0.0003,120]
[353059925,1739536591231,-5000.0,0.0003,120]
[353059926,1739536591255,-200.0,0.0003,30]
[353059927,1739536591282,-500.0,0.00030011,120]
[353059928,1739536591311,-8521.49,0.000301,120]
[353059929,1739536591336,-323302.81105946,0.00030127,30]
[353059930,1739536596570,-1506.29,0.000189,31]
[353059931,1739536596600,-1506.29,0.000189,31]
[353059932,1739536596629,-1506.29,0.000189,31]
[353059933,1739536596664,-1506.29,0.000189,31]
[353059934,1739536596695,-1506.29,0.000189,31]
[353059935,1739536596724,-1506.29,0.000189,31]
[353059936,1739536596754,-1506.29,0.000189,31]
[353059937,1739536596784,-1506.29,0.000189,31]
[353059938,1739536596815,-1506.29,0.000189,31]
[353059939,1739536596844,-1506.29,0.000189,31]
[353059940,1739536596876,-1506.29,0.000189,31]
[353059941,1739536596905,-1506.29,0.000189,31]
[353059942,1739536596934,-1506.29,0.000189,31]
[353059943,1739536596965,-1506.29,0.000189,31]
[353059944,1739536596996,-1506.29,0.000189,31]
[353059945,1739536597026,-1506.29,0.000189,31]
[353059946,1739536597089,-1506.29,0.000226,31]
[353059947,1739536597119,-1506.29,0.000226,31]
[353059948,1739536597148,-1506.29,0.000226,31]
[353059949,1739536597176,-1506.29,0.000226,31]
[353059950,1739536597206,-1506.29,0.000226,31]
[353059951,1739536597235,-1506.29,0.000226,31]
[353059952,1739536597265,-1506.29,0.000226,31]
[353059953,1739536597294,-1506.29,0.000226,31]
[353059954,1739536597335,-1506.29,0.000226,31]
[353059955,1739536597366,-1506.29,0.000226,31]
[353059956,1739536597401,-1506.29,0.000226,31]
[353059957,1739536597430,-1506.29,0.000226,31]
[353059958,1739536597459,-1506.29,0.000226,31]
[353059959,1739536597490,-1506.29,0.000226,31]
[353059960,1739536597518,-1506.29,0.000226,31]
[353059961,1739536597547,-1506.29,0.000226,31]
[353059962,1739536597577,-1506.29,0.000226,31]
[353059963,1739536597605,-1506.29,0.000226,31]
[353059964,1739536597636,-1506.29,0.000226,31]
[353059965,1739536597664,-1506.29,0.000226,31]
[353059966,1739536597693,-1506.29,0.000226,31]
[353059967,1739536597722,-1506.29,0.000226,31]
[353059968,1739536597751,-1506.29,0.000226,31]
[353059969,1739536597780,-1506.29,0.000226,31]
[353059970,1739536597814,-1506.29,0.000262,31]
[353059971,1739536597842,-1506.29,0.000262,31]
[353059972,1739536597996,-1506.29,0.000262,31]
[353059973,1739536598035,-1506.29,0.000262,31]
[353059974,1739536598064,-1506.29,0.000262,31]
[353059975,1739536598092,-1506.29,0.000262,31]
[353059976,1739536598123,-1506.29,0.000262,31]
[353059977,1739536598152,-1506.29,0.000262,31]
[353059978,1739536598183,-1506.29,0.000262,31]
[353059979,1739536598211,-1506.29,0.000262,31]
[353059980,1739536598239,-1506.29,0.000262,31]
[353059981,1739536598268,-1506.29,0.000262,31]
[353059982,1739536598296,-1506.29,0.000262,31]
[353059983,1739536598326,-1506.29,0.000262,31]
[353059984,1739536598357,-1506.29,0.000262,31]
[353059985,1739536598388,-1506.29,0.000262,31]
[353059986,1739536598416,-1506.29,0.000262,31]
[353059987,1739536598445,-1506.29,0.000262,31]
[353059988,1739536598473,-1506.29,0.000262,31]
[353059989,1739536598500,-1506.29,0.000262,31]
[353059990,1739536598539,-1506.29,0.000262,31]
[353059991,1739536598571,-1506.29,0.000262,31]
[353059992,1739536598601,-1506.29,0.000262,31]
[353059993,1739536598632,-1506.29,0.000262,31]
[353059994,1739536598666,-1506.29,0.000299,31]
[353059995,1739536598697,-1506.29,0.000299,31]
[353059996,1739536598726,-1506.29,0.000299,31]
[353059997,1739536598757,-1506.29,0.000299,31]
[353059998,1739536598788,-1506.29,0.000299,31]
[353059999,1739536598820,-1506.29,0.000299,31]
[353060000,1739536598853,-1506.29,0.000299,31]
[353060001,1739536598882,-1506.29,0.000299,31]
[353060002,1739536598913,-1506.29,0.000299,31]
[353060003,1739536598945,-1506.29,0.000299,31]
[353060004,1739536598975,-1506.29,0.000299,31]
[353060005,1739536599006,-1506.29,0.000299,31]
[353060006,1739536599037,-1506.29,0.000299,31]
[353060007,1739536599067,-1506.29,0.000299,31]
[353060008,1739536599096,-1506.29,0.000299,31]
[353060009,1739536599125,-1506.29,0.000299,31]
[353060010,1739536599152,-1506.29,0.000299,31]
[353060011,1739536599187,-1506.29,0.000299,31]
[353060012,1739536599218,-1506.29,0.000299,31]
[353060013,1739536599247,-1506.29,0.000299,31]
[353060014,1739536599275,-1506.29,0.000299,31]
[353060015,1739536599303,-1506.29,0.000299,31]
[353060016,1739536599335,-1506.29,0.000299,31]
[353060017,1739536599364,-1506.29,0.000299,31]
[353060018,1739536599392,-4676697.18894054,0.00030127,30]
[353060019,1739536599418,-190749.29105946,0.00030127,30]
[353060020,1739536610988,-3262307.70233354,0.00030127,30]
[353060021,1739536611014,-1232268.9312377,0.00030127,30]
[353060022,1739536611396,505423.36642876,0.00030127,30]
[353060023,1739536614293,-88164.84911639,0.00030127,30]
[353060024,1739536629720,-298524.92617778,0.00020701,30]
[353060025,1739536629746,-122766.24322718,0.00020701,30]
[353060026,1739536629773,-1000.0,0.00020701,30]
[353060027,1739536629800,-10000.0,0.00020701,30]
[353060028,1739536629829,-287856.77804642,0.00020701,30]
[353060029,1739536629854,-3047.42755036,0.00020701,30]
[353060030,1739536629883,-145819.38241819,0.00020701,30]
[353060031,1739536629910,-4130985.24258007,0.00020701,30]
[353060032,1739536634000,-1690468.08276172,0.00020701,30]
[353060033,1739536634027,-1083874.13295398,0.00020701,30]
[353060034,1739536634053,-241.22625855,0.00020701,30]
[353060035,1739536634078,-110679.53530671,0.00020701,30]
[353060036,1739536634103,-2114737.02271904,0.00020701,40]
[353060037,1739536637330,-5000000.0,0.00020701,40]
[353060038,1739536641424,-5000000.0,0.00020701,40]
[353060039,1739536650769,-5000000.0,0.00020701,40]
[353060040,1739536653785,-5000000.0,0.00020701,40]
[353060041,1739537191555,4820.737941,8.178e-05,2]
[353060042,1739537418787,-1169.82,8.514e-05,2]
[353060043,1739537418812,-200.0,8.532e-05,2]
[353060044,1739537418834,-200.0,8.583e-05,2]
[353060045,1739537418856,-300.0,8.62e-05,2]
[353060046,1739537418877,-150.0,8.621e-05,2]
[353060047,1739537418898,-1273.00774241,8.621e-05,2]
[353060048,1739537418919,-6707.17225759,8.621e-05,2]
[353060049,1739537419747,-10000.0,8.621e-05,2]
[353060050,1739537420433,-10000.0,8.621e-05,2]
[353060051,1739537421245,-7033.87215439,8.621e-05,2]
[353060052,1739537421267,-2966.12784561,8.622e-05,2]
[353060053,1739537428611,-10000.0,8.622e-05,2]
[353060054,1739537430282,-1650.55630687,8.622e-05,2]
[353060055,1739537430312,-180.45539977,8.622e-05,2]
[353060056,1739537430339,-150.0,8.658e-05,2]
[353060057,1739537430367,-3665.71171904,8.698e-05,2]
[353060058,1739537430395,-292.5381,8.699e-05,2]
[353060059,1739537430425,-4060.73847432,8.836e-05,2]
[353060060,1739537431565,-1544.74532568,8.836e-05,2]
[353060061,1739537431597,-1314.7618,8.836e-05,2]
[353060062,1739537431632,-7140.49287432,8.836e-05,2]
[353060072,1739537432301,-5267.89962568,8.836e-05,2]
[353060073,1739537432311,-1153.06,9.062e-05,2]
[353060074,1739537432320,-1000.0,9.087e-05,2]
[353060075,1739537432331,-1333.62,9.27e-05,2]
[353060076,1739537432340,-200.0,9.366e-05,2]
[353060077,1739537432350,-500.0,9.562e-05,2]
[353060078,1739537432359,-992.34,9.854e-05,2]
[353060079,1739537432368,-500.0,9.973e-05,2]
[353060080,1739537432378,-250.0,9.977e-05,2]
[353060081,1739537432387,-200.0,9.98e-05,2]
[353060082,1739537432399,-24343.89942798,0.0001,2]
[353060083,1739537432411,-9807.22964,0.0001,2]
[353060084,1739537432437,-2113.28286315,0.0001,2]
[353060085,1739537432448,-81307.99129178,0.0001,2]
[353060086,1739537432469,-774.34181465,0.0001,2]
[353060087,1739537432690,-100352.91229044,0.0001,2]
[353060088,1739537432700,-150707.02595655,0.0001,2]
[353060089,1739537432709,-1050.0776,0.0001,3]
[353060090,1739537432719,-151.21249216,0.0001,2]
[353060091,1739537432728,-308.97180083,0.00010015,2]
[353060092,1739537432737,-1688.86,0.00010074,2]
[353060093,1739537432747,-166.23,0.00010115,2]
[353060095,1739537432756,-154.06,0.00010137,2]
[353060096,1739537432765,-1153.06,0.00010195,2]
[353060097,1739537432774,-1000.0,0.00010223,2]
[353060098,1739537432784,-500.0,0.00010301,2]
[353060099,1739537432793,-1000.0,0.00010521,2]
[353060100,1739537432803,-1169.82,0.00010778,2]
[353060101,1739537432814,-771.02389464,0.000108,2]
[353060103,1739537432823,-153.8501447,0.000109,2]
[353060105,1739537432833,-153.8501447,0.000109,2]
[353060107,1739537432843,-500.0,0.00010959,2]
[353060109,1739537432852,-150.0,0.00010959,2]
[353060111,1739537432862,-3665.71171901,0.00010999,2]
[353060113,1739537432871,-2224.47555729,0.00011099,2]
[353060115,1739537432882,-2224.47555721,0.00011099,2]
[353060117,1739537432895,-1352.75124664,0.00011099,2]
[353060119,1739537432904,-1352.75124659,0.00011099,2]
[353060121,1739537432914,-1153.06,0.00011328,2]
[353060123,1739537432923,-1000.0,0.00011358,2]
[353060125,1739537432932,-1500.0,0.00011486,2]
[353060127,1739537432942,-1500.0,0.00011522,2]
[353060129,1739537432951,-153.8501447,0.00011571,2]
[353060131,1739537432960,-296.49,0.00011666,2]
[353060133,1739537432970,-179.4,0.00011674,2]
[353060135,1739537432979,-179.4,0.00011703,2]
[353060137,1739537432989,-179.4,0.00011732,2]
[353060139,1739537432999,-23900.0,0.00011776,2]
[353060141,1739537433008,-1352.75124659,0.000119,2]
[353060143,1739537433017,-2224.47555721,0.000119,2]
[353060144,1739537433027,-500.0,0.00012384,2]